Cogmind - Beta 10.2 *** ADVENTURER MODE // 2022.02.17 @ 18:14:12 Player: woegarden Result: Destroyed by Y-45 Defender with Beam Rifle Performance ------------- Evolutions (2) 1000 Regions Visited (5) 1000 Robots Destroyed (22) 110 Value Destroyed (385) 385 Prototype IDs (1) 20 Alien Tech Used (0) 0 Bonus (25) 25 TOTAL SCORE: 2540 Bonus ------- Follower Combat Kills 35 Friendly Fire -10 Cogmind --------- Core Integrity 0/550 Matter 300/300 Energy 95/100 System Corruption 4% Temperature Cool (18) Movement Core (50) Location -8/Materials Parts ------- > --- POWER (1) -------- (None) > --- PROPULSION (2) --- (None) > --- UTILITY (6) ------ Improved Signal Interpreter Terrain Scan Processor Hacking Suite > --- WEAPON (2) ------- (None) > --- INVENTORY (4) ---- Small Storage Unit Medium Storage Unit Weight Redist. System Weight Redist. System Peak State ------------ > --- POWER ------------ Light Nuclear Core > --- PROPULSION ------- Hover Unit Combat Airjet > --- UTILITY ---------- Experimental Sensor Array Signal Interpreter Terrain Scan Processor Transport Network Coupler ECM Suite Hacking Suite > --- WEAPON ----------- Improved Datajack > --- INVENTORY -------- Small Storage Unit Medium Storage Unit Weight Redist. System Weight Redist. System [Rating: 26] Favorites ----------- Power Light Ion Engine Engine Light Ion Engine Power Core Light Nuclear Core Propulsion Combat Airjet Leg Aluminum Leg Hover Unit Combat Airjet Flight Unit Flight Unit Utility Small Storage Unit Device Weight Redist. System Storage Small Storage Unit Processor Terrain Scan Processor Hackware Hacking Suite Weapon Light Assault Rifle Energy Gun Small Laser Energy Cannon Light EM Pulse Cannon Ballistic Gun Light Assault Rifle Special Weapon Plasma Cutter Special Melee Weapon Improved Datajack Build | -11 -10 -10 -10 -9 -8 ------- Run | Scr Mat Min Exi Min Mat Slots Evolved 4 | . . . . . 4 Power . | . . . . . . Propulsion . | . . . . . . Utility 4 | . . . . . 4 Weapon . | . . . . . . Parts Attached 47 | 6 18 4 1 5 13 Power 9 | 1 3 . 1 2 2 Engine 7 | 1 3 . 1 2 . Core 2 | . . . . . 2 Reactor . | . . . . . . Propulsion 10 | 2 6 1 . . 1 Treads . | . . . . . . Leg 2 | 2 . . . . . Wheel . | . . . . . . Hover 4 | . 2 1 . . 1 Flight 4 | . 4 . . . . Utility 17 | 1 4 3 . . 9 Device 11 | . 4 3 . . 4 Storage 1 | 1 . . . . . Processor 4 | . . . . . 4 Hackware 1 | . . . . . 1 Protection . | . . . . . . Artifact . | . . . . . . Weapon 11 | 2 5 . . 3 1 Energy Gun 3 | 1 2 . . . . Energy Cannon 1 | . . . . 1 . Ballistic Gun 5 | 1 3 . . 1 . Ballistic Cannon . | . . . . . . Launcher . | . . . . . . Special Weapon 1 | . . . . 1 . Impact Weapon . | . . . . . . Slashing Weapon . | . . . . . . Piercing Weapon . | . . . . . . Special Melee Weapon 1 | . . . . . 1 Unidentified Prototypes 1 | . . 1 . . . Parts Lost 14 | . 1 . . 3 10 Power 2 | . . . . 1 1 Propulsion 4 | . 1 . . 1 2 Utility 4 | . . . . . 4 Weapon 4 | . . . . 1 3 Highest Loss Streak 4 | . 1 . . 3 4 Average Slot Usage (%) 84 | . 88 85 85 82 78 Engine 10 | . 13 14 14 14 . Core 1 | . . . . . 7 Leg 4 | . 13 . . . . Hover 14 | . 3 28 28 22 10 Flight 3 | . 10 . . . . Device 13 | . 9 14 14 14 20 Storage 10 | . 14 14 14 14 . Processor 6 | . . . . . 26 Energy Gun 3 | . 11 . . . . Energy Cannon 2 | . . . . 4 6 Ballistic Gun 9 | . 12 14 14 8 . Special Weapon 1 | . . . . 4 3 Naked Turns . | . . . . . . Heaviest Build 16 | 12 12 9 8 16 15 Greatest Support 34 | 20 20 34 34 34 28 Greatest Overweight (x) 2 | . 2 . . . . Average Overweight (x) . | . . . . . . Largest Inventory Capacity 6 | 6 6 6 6 6 6 Average Capacity 5 | 4 6 6 6 6 4 Most Carried 6 | 4 6 6 6 6 5 Average Carried 4 | . 3 5 6 6 3 Final Capacity 6 | 6 6 6 6 6 4 Final Carried 6 | . 6 6 6 6 4 Class Distribution -------------------- 43% | Scavenger-Mutant 34% | Mutant 19% | Scavenger-Scout Dominant Class ---------------- Mutant | -10/Materials Scavenger-Mutant | -10/Mines Scavenger-Mutant | -10/Exiles Scavenger-Mutant | -9/Mines Scavenger-Scout | -8/Materials Resources | -11 -10 -10 -10 -9 -8 ----------- Run | Scr Mat Min Exi Min Mat Matter Collected 726 | 251 196 73 . 81 125 Remotely . | . . . . . . Salvage Created 654 | . 267 38 . 138 211 Parts 55 | . 29 2 . 10 14 Haulers Intercepted 3 | . 1 . . . 2 Recyclers Shooed . | . . . . . . Parts Field Recycled . | . . . . . . Retrieved Matter . | . . . . . . Parts Self-Destructed . | . . . . . . Prevented . | . . . . . . Kills | -11 -10 -10 -10 -9 -8 ------- Run | Scr Mat Min Exi Min Mat Combat Hostiles Destroyed 16 | . 8 2 . 3 3 Melee 1 | . . . . 1 . Guns 12 | . 8 2 . 2 . Cannons 3 | . . . . . 3 Classes Destroyed 10 | . 6 1 . 1 2 Worker 1 | . 1 . . . . Builder 1 | . 1 . . . . Tunneler 1 | . 1 . . . . Hauler 3 | . 1 . . . 2 Operator 1 | . . . . . 1 Swarmer 9 | . 6 . . 1 2 Grunt 3 | . 2 1 . . . Sentry 2 | . . . . 2 . Hunter 1 | . . . . . 1 Assembled 1 | . . 1 . . . Best Kill Streak 4 | . 4 1 . 2 2 Combat Bots Only 4 | . 4 1 . 2 2 Max Kills in Single Turn 1 | . 1 1 . 1 1 Gunslinging . | . . . . . . Exploded . | . . . . . . Melee 1 | . . . . 1 . Uniques/NPCs Destroyed . | . . . . . . Combat | -11 -10 -10 -10 -9 -8 -------- Run | Scr Mat Min Exi Min Mat Damage Taken 1623 | . 234 17 . 376 996 Core 782 | . 63 9 . 155 555 Absorbed by Shields . | . . . . . . Core Remaining (%) 54 | 100 . . . 9 . Volleys Fired 86 | . 26 12 . 26 22 Largest 2 | . 2 1 . 1 1 Hottest 60 | . 60 20 . 23 56 Shots Fired 112 | . 52 12 . 26 22 Gun 90 | . 52 12 . 26 . Cannon 19 | . . . . . 19 Launcher . | . . . . . . Special 3 | . . . . . 3 Kinetic 64 | . 26 12 . 26 . Thermal 29 | . 26 . . . 3 Explosive . | . . . . . . Electromagnetic 19 | . . . . . 19 Robot Hit Streak 17 | . 14 17 . 16 15 Robot Miss Streak 2 | . 2 1 . 2 1 Penetration Max . | . . . . . . Secondary Targets . | . . . . . . Shots Hit Robots 92 | . 40 9 . 22 21 Core Hits 36 | . 16 4 . 8 8 Critical Hits 2 | . . 1 . 1 . Critical Kills 1 | . . 1 . . . Critical Parts Destroyed . | . . . . . . Melee Attacks 1 | . . . . . 1 Impact . | . . . . . . Slashing . | . . . . . . Piercing . | . . . . . . Sneak Attacks . | . . . . . . Combat Hostiles . | . . . . . . Follow-up Attacks . | . . . . . . Damage Inflicted 1217 | . 453 97 . 215 452 Guns 740 | . 443 97 . 200 . Cannons 418 | . . . . . 418 Explosions . | . . . . . . Melee . | . . . . . . Ramming 25 | . 10 . . 15 . Kinetic 487 | . 190 97 . 200 . Thermal 287 | . 253 . . . 34 Explosive . | . . . . . . Electromagnetic 418 | . . . . . 418 Impact . | . . . . . . Slashing . | . . . . . . Piercing . | . . . . . . Highest Corruption 4 | . . . . 4 4 Average Corruption 3 | . . . . 3 4 Corruption Purged . | . . . . . . Effects 3 | . . . . 2 1 Matter Fused 1 | . . . . 1 . Data Loss (minor) 2 | . . . . 1 1 Overload Shots . | . . . . . . Overflow Damage 22 | . . . . . 22 Projectiles 22 | . . . . . 22 Explosions . | . . . . . . Melee . | . . . . . . Knockbacks . | . . . . . . Impact . | . . . . . . Kinetic . | . . . . . . Secondary . | . . . . . . Self-Inflicted Damage 11 | . 5 . . 6 . Shots . | . . . . . . Rammed 10 | . 2 . . 8 . Targets Rammed 10 | . 2 . . 8 . Kicked . | . . . . . . Crushed . | . . . . . . Highest Temperature 159 | . 159 8 . 11 56 Average Temperature 29 | . 52 2 . 4 15 Received Heat Transfer 549 | . 114 12 . 135 288 Siege Activations . | . . . . . . Robots Corrupted . | . . . . . . Combat Hostiles . | . . . . . . Parts Fried 3 | . . . . . 3 Impact Corruptions . | . . . . . . Robots Melted . | . . . . . . Combat Hostiles . | . . . . . . Parts Melted . | . . . . . . Heat Transferred 686 | . 575 . . . 111 Parts Sabotaged . | . . . . . . Parts Stolen . | . . . . . . Parts Stripped . | . . . . . . Power Chain Reactions . | . . . . . . Missiles Intercepted . | . . . . . . Alert | -11 -10 -10 -10 -9 -8 ------- Run | Scr Mat Min Exi Min Mat Peak Influence 348 | . 265 102 . 60 348 Initial 45 | . . 45 . . 19 Average 93 | . 92 51 . 44 192 Maximum Alert Level 1 | . 1 . . . 1 Low Security (%) 80 | 100 83 100 . 100 36 Level 1 19 | . 16 . . . 63 Level 2 . | . . . . . . Level 3 . | . . . . . . Level 4 . | . . . . . . Level 5 . | . . . . . . High Security . | . . . . . . Max Security . | . . . . . . Squads Dispatched 2 | . . . . . 2 Investigation . | . . . . . . Extermination . | . . . . . . Reinforcement 2 | . . . . . 2 Assault . | . . . . . . Garrison . | . . . . . . Intercept . | . . . . . . Construction Impeded . | . . . . . . Haulers Reinforced . | . . . . . . Stealth | -11 -10 -10 -10 -9 -8 --------- Run | Scr Mat Min Exi Min Mat Distress Signals 5 | . 2 . . . 3 Communications Jammed . | . . . . . . Distress Signals . | . . . . . . Times Spotted 48 | . 16 3 . 5 24 Peak Tracking Total 8 | . 4 2 . 3 8 Tactical Retreats 6 | . 3 . . 1 2 Traps | -11 -10 -10 -10 -9 -8 ------- Run | Scr Mat Min Exi Min Mat Traps Triggered . | . . . . . . Indirectly . | . . . . . . Trap Hack Attempts . | . . . . . . Triggered . | . . . . . . Disarmed . | . . . . . . Reprogrammed . | . . . . . . Reused . | . . . . . . Traps Extracted . | . . . . . . Installed . | . . . . . . Triggered . | . . . . . . Machines | -11 -10 -10 -10 -9 -8 ---------- Run | Scr Mat Min Exi Min Mat Machines Disabled . | . . . . . . Max in Single Turn . | . . . . . . Machines Sabotaged . | . . . . . . Garrisons Compromised . | . . . . . . Overloaded Fab Kills . | . . . . . . Fab Network Shutdowns . | . . . . . . Hacking | -11 -10 -10 -10 -9 -8 --------- Run | Scr Mat Min Exi Min Mat Machines Accessed . | . . . . . . Terminals . | . . . . . . Fabricators . | . . . . . . Repair Stations . | . . . . . . Recycling Units . | . . . . . . Scanalyzers . | . . . . . . Garrison Access . | . . . . . . Total Hacks . | . . . . . . Successful . | . . . . . . Failed . | . . . . . . Catastrophic . | . . . . . . Database Lockouts . | . . . . . . Manual . | . . . . . . Terminals . | . . . . . . Fabricators . | . . . . . . Repair Stations . | . . . . . . Recycling Units . | . . . . . . Scanalyzers . | . . . . . . Garrison Access . | . . . . . . Terminal Hacks . | . . . . . . Fabricator Hacks . | . . . . . . Repair Station Hacks . | . . . . . . Recycling Unit Hacks . | . . . . . . Scanalyzer . | . . . . . . Garrison Access Hacks . | . . . . . . Unauthorized Hacks . | . . . . . . Terminals . | . . . . . . Fabricators . | . . . . . . Repair Stations . | . . . . . . Recycling Units . | . . . . . . Scanalyzers . | . . . . . . Garrison Access . | . . . . . . Data Cores Recovered . | . . . . . . Used . | . . . . . . Hacking Detections . | . . . . . . Full Trace Events . | . . . . . . Feedback Events . | . . . . . . Feedback Blocked . | . . . . . . Robot Schematics Acquired . | . . . . . . Robots Built . | . . . . . . Matter . | . . . . . . Time . | . . . . . . Total Robot Build Rating . | . . . . . . Part Schematics Acquired . | . . . . . . Parts Built . | . . . . . . Matter . | . . . . . . Time . | . . . . . . Total Part Build Rating . | . . . . . . Parts Repaired . | . . . . . . Time . | . . . . . . Parts Recycled . | . . . . . . Recycled Matter . | . . . . . . Retrieved Matter . | . . . . . . Retrieved Components . | . . . . . . Parts Scanalyzed . | . . . . . . Part Schematics Acquired . | . . . . . . Parts Damaged . | . . . . . . Bothacking | -11 -10 -10 -10 -9 -8 ------------ Run | Scr Mat Min Exi Min Mat Used RIF Installer . | . . . . . . Robots Hacked 1 | . . . . . 1 Non-combat 1 | . . . . . 1 Combat . | . . . . . . Robot Hacks Applied 1 | . . . . . 1 parse_system 1 | . . . . . 1 Relay Couplers Released . | . . . . . . Robots Rewired . | . . . . . . Allies Hacked . | . . . . . . Hacks Repelled . | . . . . . . Allies | -11 -10 -10 -10 -9 -8 -------- Run | Scr Mat Min Exi Min Mat Total Allies 5 | . . 5 . . . Largest Group 5 | . . 5 . . . Highest-Rated Group 82 | . . 82 . . . Highest-Rated Ally 31 | . . 31 . . . Total Orders . | . . . . . . Ally Attacks 3 | . . 3 . . . Total Damage 66 | . . 66 . . . Kills 1 | . . 1 . . . Allies Corrupted . | . . . . . . Allies Melted . | . . . . . . Intel | -11 -10 -10 -10 -9 -8 ------- Run | Scr Mat Min Exi Min Mat Robot Analysis Total . | . . . . . . Derelict Logs Recovered 2 | . . 1 . 1 . Drone Launches . | . . . . . . Drone Recoveries . | . . . . . . Exploration | -11 -10 -10 -10 -9 -8 ------------- Run | Scr Mat Min Exi Min Mat Turns Passed 1852 | 71 627 484 33 237 400 Spaces Moved 1949 | 44 637 674 47 215 332 Core 18 | 18 . . . . . Treads . | . . . . . . Legs 199 | 26 173 . . . . Wheels . | . . . . . . Hover 1414 | . 146 674 47 215 332 Flight 318 | . 318 . . . . Fastest Speed 37 | 50 37 56 66 66 66 Average Speed 68 | 91 66 65 66 72 75 Slowest Speed 210 | 120 210 66 66 80 80 Overloaded Moves . | . . . . . . Propulsion Burnouts . | . . . . . . Robots Hopped 1 | . 1 . . . . Cave-ins Triggered . | . . . . . . Exploration Rate (%) 42 | 3 81 99 10 38 25 Regions Visited 5 Branch Regions 3 Pre-discovered Areas 2 | . . 1 . 1 . Known Exits Taken . | . . . . . . Unknown Exits Taken 5 | 1 1 1 1 1 . Scrap Searched 3 | . . 1 . 2 . Spaces Dug . | . . . . . . Terrain Destroyed . | . . . . . . Melee . | . . . . . . Projectile . | . . . . . . AOE . | . . . . . . Terrain Rammed . | . . . . . . Walls Destroyed . | . . . . . . Machines Disabled . | . . . . . . Actions | -11 -10 -10 -10 -9 -8 --------- Run | Scr Mat Min Exi Min Mat Total 2348 | 75 795 706 48 272 452 Wait 203 | 20 76 12 . 17 78 Move 1942 | 43 634 673 46 214 332 Hop 1 | . 1 . . . . Pick Up 29 | 6 18 2 . . 3 Fast Attach 9 | . . . 1 4 4 Attach 22 | 6 11 1 . . 4 Detach 8 | . 8 . . . . Swap 16 | . 7 3 . 1 5 Drop 21 | . 12 3 1 2 3 Fire 86 | . 26 12 . 26 22 Melee 1 | . . . . . 1 Ram 10 | . 2 . . 8 . Kick . | . . . . . . Crush . | . . . . . . Escape Stasis . | . . . . . . Rewire . | . . . . . . Trap . | . . . . . . Miscellaneous . | . . . . . . Route ------- -11/Scrapyard -10/Materials (discovered 4 exits: [*Mat x2] / [*Min x2]) -10/Mines (discovered 3 exits: [*Mat x2] / [*Exi]) -10/Exiles -9/Mines -8/Materials History --------- Turn | Location | Event 10 | -11/Scrapyard | Discovered new exit (range 15) 72 | -11/Scrapyard | Entered Materials 292 | -10/Materials | Discovered new exit (range 7) 314 | -10/Materials | Build established: Mutant 394 | -10/Materials | Discovered new exit (range 10) 590 | -10/Materials | Discovered new exit (range 3) 599 | -10/Materials | Discovered new exit (range 13) 699 | -10/Materials | Entered Mines 706 | -10/Mines | Assembled infested the area 710 | -10/Mines | Discovered new exit (range 5) 749 | -10/Mines | Deemed a non-threat by the Exiles lab entrance 749 | -10/Mines | Discovered new exit (range 5) 821 | -10/Mines | Learned location of Storage (-9) 835 | -10/Mines | Build established: Scavenger-Mutant 854 | -10/Mines | Found a damaged Exp. Sensor Array with a note attached 856 | -10/Mines | Found Prototype Device 858 | -10/Mines | Identified Exp. Sensor Array 927 | -10/Mines | Assisted by bots powering up and referring to "LRC-V3" 929 | -10/Mines | Learned Materials terminal intel 941 | -10/Mines | Discovered new exit (range 6) 1183 | -10/Mines | Entered Exiles 1193 | -10/Exiles | Discovered new exit (range 15) 1205 | -10/Exiles | Met 8R-AWN 1216 | -10/Exiles | Entered Mines 1260 | -9/Mines | Met a Derelict bent on vengeance 1322 | -9/Mines | Core integrity fell below 50% 1349 | -9/Mines | Core integrity fell below 20% 1386 | -9/Mines | Lost 3 parts (1p1n1w) 1444 | -9/Mines | Discovered new exit (range 8) 1453 | -9/Mines | Entered Materials 1453 | -8/Materials | Evolved 4 slots: Utility x4 1454 | -8/Materials | Loaded intel: 12 terminal locations 1744 | -8/Materials | Build established: Scavenger-Scout 1831 | -8/Materials | Lost 4 parts (1p1n2w) 1845 | -8/Materials | Core integrity fell below 50% 1851 | -8/Materials | Core integrity fell below 20% 1853 | -8/Materials | Destroyed by Y-45 Defender with Beam Rifle Last Messages --------------- M010. 01799_ O-16 Technician locks terminal. 01800_ Hover Unit destroyed. 01800_ Lgt. Nuclear Core destroyed. 01807_ Discarded Signal Interpreter. [Achievement: I Spy] 01818_ W-25 Informer distress signal alerts nearby ally. 01826_ Slug penetrates Wall. 01831_ Exp. Sensor Array destroyed. 01832_ Slug penetrates Wall. 01834_ ECM Suite destroyed. 01840_ Penetrated by Slug. 01843_ Slug penetrates Wall. 01844_ Cmb. Airjet destroyed. 01848_ B-36 Bruiser suffers critical hit. 01849_ Penetrated by Slug. 01849_ Transport Network Coupler destroyed. 01849_ System corrupted by crushing effect (+4). 01852_ System corrupted: Component data lost. 01852_ Penetrated by Slug. Map ----- +----------------------------------------------------+ | ?????????????????????????????????????????????????? | | ?????????????????????????????????????????????????? | | ?????????????????????????????????????????????????? | | ?????????????????????????????????????????????????? | | ?????????????????????????????????????????????????? | | ?????????????????????????????????????????????????? | | ?????????????????????????????????????????????????? | | ??????????????????????????????????????????T??????? | | ?????????????????????????????????????????????????? | | ?????????????????????????????????????????????????? | | ?????????????????????????????????????????????????? | | ?????????????????????????????????????????????????? | | ?????????????????????????????????????????????????? | | ?????????????????????????????????????????????????? | | ?????????????????????????????????????????????????? | | ?????????????????????????????????????????????????? | | ?????????????????????????????????????????????????? | | ?????????????????????????????????????????????????? | | ?????????????????????????????????????????????????? | | ?????????????????????#+#??????????????????????T??? | | ?????????????????????# #????######???????????????? | | ?????????????????????# #??? #???????????????? | | ## ????????????????### ###? #???????????????? | | # ############## gg # #???????????????? | | # Y # #???????????????? | | # T b@ #???????????????? | | # Y # #???????????????? | | # ####### ###### Y # h #???????????????? | | ############# ###?####/######+####??"T"??????????? | | # #?# #??#?????"""??????????? | | ???""" # #?# #?????????????????????? | | ???"""""" + #?# #?????????????????????? | | ???" """ # #?# """ #?????????????????????? | | ?? # #?# """"" #?????????????????????? | | ?########### ##?# """"" #?????????????????????? | | ?########### #??# """"" #?????????????????????? | | ?# # #??# """??#?????????????????????? | | ?# + #??# ?????????????????????????? | | ?# # ############??????????????????????? | | ?# # ## #??????????????????????? | | ?########### ## #??????????????????????? | | ??????????# # #??????????????????????? | | ??????????# # #??????????????????????? | | ??????????# + """ """ #??????????????????????? | | ??????????# # """ """ #??"???????????????????? | | ??????????# # """ """ #????? ????????????????? | | ############ ## #???"??????????????????? | | # ############?? ???????#???????????? | | """ """ # #???#?????#????????????##?????????? | | """ """ + #????#????##?#?????????#?#????????? | +----------------------------------------------------+ Best States ------------- Heat Dissipation 31 Energy Generation 14 Energy Capacity 265 Matter Stores 300 Matter Capacity 300 Sight Range 16 Robot Scan Range 30 Terrain Scan Range 16 Terrain Scan Density 85 ECM Strength 1 Additional Mass Support 6 Resistance: KI 20 Resistance: TH 20 Resistance: EX 20 Resistance: EM 20 Resistance: I 20 Resistance: S 20 Resistance: P 20 Evasion (%) 62 Offensive Hacking 20 Item Schematics ----------------- None Robot Schematics ------------------ None Fabricated ------------ Nothing Alien Tech Used ----------------- None Achievements -------------- Close Call Fist Fight I Spy The More The Merrier Challenges ------------ None Game ------ Seed CoilShieldDoomcannon Manual? 0 Play Time 00:46:39 Cumulative 5.6 hours Start 2022.02.17 @ 17:24:59 End 2022.02.17 @ 18:14:12 Sessions 1 Manual Loads 0 Difficulty Adventurer Special Mode None Game No. 8 Rogue 0 Adventurer 8 Explorer 0 Win Type - Total 0 Types 0/0/0/0/0/0/0/0/0 Lore% 14 Gallery% 9 Achievement% 8 Wizard Run 0 Options --------- ASCII 0 Keyboard 0 Movement Mouse Keybinds 0 Fullscreen 1 Font 16/Proggy Map View 76x50 Tactical HUD 1 Map Filters NONE Filters NONE Steam 1 RUN: 63f1a877-27b2-49d1-b5f3-5e1cffdf221d